Department Family,Entity,Date,Expense Type,Expense Area,Supplier,SME,Transaction Number,Amount,Description,Expenditure Type
HM Land Registry,HM Land Registry,24/11/2017,Software as a Service (Cloud),IS Service Delivery,Anaplan Limited,Large,1198504,"118,014.80",Cloud Computing Services,Administration
HM Land Registry,HM Land Registry,09/11/2017,Stationery National Contracts,Registration Legal Services Group,Banner Group Limited,Large,1197119,9.14,Stationery,Administration
HM Land Registry,HM Land Registry,09/11/2017,Stationery National Contracts,Central Facilities Management Team,Banner Group Limited,Large,1197119,12.91,Stationery,Administration
HM Land Registry,HM Land Registry,09/11/2017,Stationery National Contracts,Finance Group,Banner Group Limited,Large,1197119,135.84,Stationery,Administration
HM Land Registry,HM Land Registry,09/11/2017,Stationery National Contracts,Land Charges,Banner Group Limited,Large,1197119,192.20,Stationery,Administration
HM Land Registry,HM Land Registry,09/11/2017,Stationery National Contracts,Director of Information Systems,Banner Group Limited,Large,1197119,253.10,Stationery,Administration
HM Land Registry,HM Land Registry,09/11/2017,Stationery National Contracts,Central Operations Group,Banner Group Limited,Large,1197119,325.20,Stationery,Administration
HM Land Registry,HM Land Registry,09/11/2017,Stationery National Contracts,Hull Office,Banner Group Limited,Large,1197119,463.62,Stationery,Administration
HM Land Registry,HM Land Registry,09/11/2017,Stationery National Contracts,Croydon Office,Banner Group Limited,Large,1197119,548.22,Stationery,Administration
HM Land Registry,HM Land Registry,09/11/2017,Stationery National Contracts,Coventry Office,Banner Group Limited,Large,1197119,564.06,Stationery,Administration
HM Land Registry,HM Land Registry,09/11/2017,Stationery National Contracts,Weymouth Office,Banner Group Limited,Large,1197119,692.75,Stationery,Administration
HM Land Registry,HM Land Registry,09/11/2017,Stationery National Contracts,Telford Office,Banner Group Limited,Large,1197119,705.74,Stationery,Administration
HM Land Registry,HM Land Registry,09/11/2017,Stationery National Contracts,Peterborough Office,Banner Group Limited,Large,1197119,816.46,Stationery,Administration
HM Land Registry,HM Land Registry,09/11/2017,Stationery National Contracts,Leicester Office,Banner Group Limited,Large,1197119,864.25,Stationery,Administration
HM Land Registry,HM Land Registry,09/11/2017,Stationery National Contracts,Fylde Office,Banner Group Limited,Large,1197119,"1,231.14",Stationery,Administration
HM Land Registry,HM Land Registry,09/11/2017,Stationery National Contracts,Gloucester Office,Banner Group Limited,Large,1197119,"1,417.54",Stationery,Administration
HM Land Registry,HM Land Registry,09/11/2017,Stationery National Contracts,Nottingham Office,Banner Group Limited,Large,1197119,"1,436.16",Stationery,Administration
HM Land Registry,HM Land Registry,09/11/2017,Stationery National Contracts,Plymouth Office,Banner Group Limited,Large,1197119,"1,664.86",Stationery,Administration
HM Land Registry,HM Land Registry,09/11/2017,Stationery National Contracts,Durham Office,Banner Group Limited,Large,1197119,"1,833.92",Stationery,Administration
HM Land Registry,HM Land Registry,09/11/2017,Stationery National Contracts,Birkenhead Office,Banner Group Limited,Large,1197119,"2,849.84",Stationery,Administration
HM Land Registry,HM Land Registry,09/11/2017,Stationery National Contracts,Wales Office,Banner Group Limited,Large,1197119,"3,648.65",Stationery,Administration
HM Land Registry,HM Land Registry,09/11/2017,Stationery National Contracts,IS Service Delivery,Banner Group Limited,Large,1197119,"9,692.72",Stationery,Administration
HM Land Registry,HM Land Registry,22/11/2017,Computer Equipment Consumables,IS Service Delivery,Canon (UK) Ltd,Large,1198272,"25,348.01",Computer Equipment Consumables,Administration
HM Land Registry,HM Land Registry,22/11/2017,Computer Equipment Consumables,IS Service Delivery,Canon (UK) Ltd,Large,1198273,"26,598.68",Computer Equipment Consumables,Administration
HM Land Registry,HM Land Registry,08/11/2017,Computer Equipment Maintenance,IS Service Delivery,CGI IT UK Limited,Large,1196915,"61,500.00",Computer Equipment Maintenance,Administration
HM Land Registry,HM Land Registry,08/11/2017,Software as a Service (Cloud),Dir: Finance,CGI IT UK Limited,Large,1196662,"63,654.62",Cloud Computing Services,Administration
HM Land Registry,HM Land Registry,27/11/2017,Rates Payable,Wales Office,City & County of Swansea,Large,1176720,"22,580.00",Rates Payable,Administration
HM Land Registry,HM Land Registry,30/11/2017,Rates Payable,Croydon Office,Croydon Council,Large,1176376,"37,919.00",Rates Payable,Administration
HM Land Registry,HM Land Registry,21/11/2017,Fixed Asset Interface Account,Balance Sheet,Dell Corporation Ltd,Large,1198145,"31,423.25",Fixed Assets,Administration
HM Land Registry,HM Land Registry,21/11/2017,Fixed Asset Interface Account,Balance Sheet,Dell Corporation Ltd,Large,1198144,"34,839.29",Fixed Assets,Administration
HM Land Registry,HM Land Registry,21/11/2017,Fixed Asset Interface Account,Balance Sheet,Dell Corporation Ltd,Large,1198154,"43,663.20",Fixed Assets,Administration
HM Land Registry,HM Land Registry,21/11/2017,Fixed Asset Interface Account,Balance Sheet,Dell Corporation Ltd,Large,1198146,"53,510.76",Fixed Assets,Administration
HM Land Registry,HM Land Registry,27/11/2017,Rates Payable,Durham Office,Durham County Council,Large,1176070,"28,213.00",Rates Payable,Administration
HM Land Registry,HM Land Registry,22/11/2017,Hays Document Exchange (DX),Central Facilities Management Team,DX Network Services Ltd,Large,1198510,"28,815.00",DX Postage,Administration
HM Land Registry,HM Land Registry,28/11/2017,Hays Document Exchange (DX),Central Facilities Management Team,DX Network Services Ltd,Large,1199213,"137,033.51",DX Postage,Administration
HM Land Registry,HM Land Registry,08/11/2017,Transport Hire of Cars and Vans,Central Facilities Management Team,Enterprise Rent-A-Car (UK) Ltd,Large,1196337,"21,075.98",Transport Hire of Cars and Vans,Administration
HM Land Registry,HM Land Registry,27/11/2017,Rates Payable,Fylde Office,Fylde Borough Council,Large,1175982,"17,124.00",Rates Payable,Administration
HM Land Registry,HM Land Registry,27/11/2017,Rates Payable,Gloucester Office,Gloucester City Council,Large,1175823,"28,980.00",Rates Payable,Administration
HM Land Registry,HM Land Registry,03/11/2017,Computer Equipment Maintenance,IS Service Delivery,Innovation Data Processing Ltd,SME,1196496,"57,482.00",Computer Equipment Maintenance,Administration
HM Land Registry,HM Land Registry,27/11/2017,Software as a Service (Cloud),Dir: (Statutory) Digital Services,INOVEM Ltd,SME,1198398,"36,000.00",Cloud Computing Services,Administration
HM Land Registry,HM Land Registry,09/11/2017,Assets in the Course of Construction,Balance Sheet,Kainos Software Ltd,Large,1196658,"324,941.38",Assets in the Course of Construction,Administration
HM Land Registry,HM Land Registry,10/11/2017,Rates Payable,Hull Office,Kingston Upon Hull City Council,Large,1176171,"12,878.00",Rates Payable,Administration
HM Land Registry,HM Land Registry,27/11/2017,Rates Payable,Leicester Office,Leicester City Council,Large,1176378,"24,708.00",Rates Payable,Administration
HM Land Registry,HM Land Registry,02/11/2017,Computer Equipment Maintenance,IS Service Delivery,MicroStrategy Ltd,Large,1196345,"57,024.75",Computer Equipment Maintenance,Administration
HM Land Registry,HM Land Registry,30/11/2017,Rates Payable,Nottingham Office,Nottingham City Council,Large,1176596,"19,400.00",Rates Payable,Administration
HM Land Registry,HM Land Registry,08/11/2017,Ordnance Survey Surveys,Central Operations Group,Ordnance Survey,Large,1196907,"831,301.00",Ordnance Survey Surveys,Administration
HM Land Registry,HM Land Registry,27/11/2017,Rates Payable,Peterborough Office,Peterborough City Council,Large,1176069,"8,746.00",Rates Payable,Administration
HM Land Registry,HM Land Registry,27/11/2017,Rates Payable,Director of Information Systems,Plymouth City Council,Large,1176173,"36,385.00",Rates Payable,Administration
HM Land Registry,HM Land Registry,08/11/2017,Transport Insurance,Central Facilities Management Team,Portmore Insurance Brokers Ltd,SME,1196420,"27,664.00",Transport Insurance,Administration
HM Land Registry,HM Land Registry,21/11/2017,Travel & Subsistence General Duty,Research & Data Mining,Redfern Travel Ltd,SME,1198192,-162.50,Travel & Subsistence,Administration
HM Land Registry,HM Land Registry,08/11/2017,Travel & Subsistence General Duty,Director of Legal Services,Redfern Travel Ltd,SME,1196911,-150.30,Travel & Subsistence,Administration
HM Land Registry,HM Land Registry,28/11/2017,Travel & Subsistence General Duty,Finance Director,Redfern Travel Ltd,SME,1198849,-94.70,Travel & Subsistence,Administration
HM Land Registry,HM Land Registry,28/11/2017,Travel & Subsistence General Duty,Research & Data Mining,Redfern Travel Ltd,SME,1198849,-63.40,Travel & Subsistence,Administration
HM Land Registry,HM Land Registry,20/11/2017,Travel & Subsistence General Duty,Diversity,Redfern Travel Ltd,SME,1197994,-17.20,Travel & Subsistence,Administration
HM Land Registry,HM Land Registry,21/11/2017,Travel & Subsistence General Duty,Local Lawyer Support Group,Redfern Travel Ltd,SME,1198192,-16.90,Travel & Subsistence,Administration
HM Land Registry,HM Land Registry,21/11/2017,Travel & Subsistence General Duty,Operations Assurance and Risk,Redfern Travel Ltd,SME,1198192,-3.78,Travel & Subsistence,Administration
HM Land Registry,HM Land Registry,20/11/2017,Travel & Subsistence Overseas Travel,International Relations,Redfern Travel Ltd,SME,1197994,1.20,Travel & Subsistence,Administration
HM Land Registry,HM Land Registry,08/11/2017,Travel & Subsistence General Duty,Corporate Assurance,Redfern Travel Ltd,SME,1196911,10.54,Travel & Subsistence,Administration
HM Land Registry,HM Land Registry,28/11/2017,Travel & Subsistence Dual Workplace,Local Land Charges,Redfern Travel Ltd,SME,1198849,12.11,Travel & Subsistence,Administration
HM Land Registry,HM Land Registry,21/11/2017,Travel & Subsistence General Duty,Commercial & Customer Strategy & Performance,Redfern Travel Ltd,SME,1198192,12.20,Travel & Subsistence,Administration
HM Land Registry,HM Land Registry,21/11/2017,Travel & Subsistence General Duty,Finance Director,Redfern Travel Ltd,SME,1198192,13.30,Travel & Subsistence,Administration
HM Land Registry,HM Land Registry,28/11/2017,Travel & Subsistence General Duty,Finance Group,Redfern Travel Ltd,SME,1198849,13.30,Travel & Subsistence,Administration
HM Land Registry,HM Land Registry,21/11/2017,Travel & Subsistence General Duty,Corporate Assurance,Redfern Travel Ltd,SME,1198192,23.00,Travel & Subsistence,Administration
HM Land Registry,HM Land Registry,21/11/2017,Travel & Subsistence General Duty,Director of Legal Services,Redfern Travel Ltd,SME,1198192,23.30,Travel & Subsistence,Administration
HM Land Registry,HM Land Registry,08/11/2017,Travel & Subsistence General Duty,Peterborough Office,Redfern Travel Ltd,SME,1196911,24.10,Travel & Subsistence,Administration
HM Land Registry,HM Land Registry,28/11/2017,Travel & Subsistence General Duty,Marketing Services Team,Redfern Travel Ltd,SME,1198849,24.60,Travel & Subsistence,Administration
HM Land Registry,HM Land Registry,21/11/2017,Travel & Subsistence General Duty,Strategy Team,Redfern Travel Ltd,SME,1198192,29.70,Travel & Subsistence,Administration
HM Land Registry,HM Land Registry,20/11/2017,Travel & Subsistence General Duty,Corporate Assurance,Redfern Travel Ltd,SME,1197994,32.50,Travel & Subsistence,Administration
HM Land Registry,HM Land Registry,08/11/2017,Travel & Subsistence General Duty,Weymouth Office,Redfern Travel Ltd,SME,1196911,34.60,Travel & Subsistence,Administration
HM Land Registry,HM Land Registry,08/11/2017,Travel & Subsistence General Duty,Nottingham Office,Redfern Travel Ltd,SME,1196911,38.80,Travel & Subsistence,Administration
HM Land Registry,HM Land Registry,08/11/2017,Travel & Subsistence General Duty,Leicester Office,Redfern Travel Ltd,SME,1196911,43.00,Travel & Subsistence,Administration
HM Land Registry,HM Land Registry,21/11/2017,Travel & Subsistence General Duty,Forward Scanning,Redfern Travel Ltd,SME,1198192,43.00,Travel & Subsistence,Administration
HM Land Registry,HM Land Registry,08/11/2017,Travel & Subsistence General Duty,Local Lawyer Support Group,Redfern Travel Ltd,SME,1196911,44.83,Travel & Subsistence,Administration
HM Land Registry,HM Land Registry,20/11/2017,Travel & Subsistence General Duty,National Lawyer Training,Redfern Travel Ltd,SME,1197994,45.30,Travel & Subsistence,Administration
HM Land Registry,HM Land Registry,28/11/2017,Travel & Subsistence General Duty,Guarantee & Litigation,Redfern Travel Ltd,SME,1198849,47.50,Travel & Subsistence,Administration
HM Land Registry,HM Land Registry,08/11/2017,Travel & Subsistence General Duty,Registration Legal Services Group,Redfern Travel Ltd,SME,1196911,53.84,Travel & Subsistence,Administration
HM Land Registry,HM Land Registry,20/11/2017,Travel & Subsistence Dual Workplace,Central Facilities Management Team,Redfern Travel Ltd,SME,1197994,54.60,Travel & Subsistence,Administration
HM Land Registry,HM Land Registry,28/11/2017,Travel & Subsistence Dual Workplace,Corporate Legal Services,Redfern Travel Ltd,SME,1198849,57.50,Travel & Subsistence,Administration
HM Land Registry,HM Land Registry,28/11/2017,Travel & Subsistence General Duty,Leicester Office,Redfern Travel Ltd,SME,1198849,60.40,Travel & Subsistence,Administration
HM Land Registry,HM Land Registry,28/11/2017,Travel & Subsistence General Duty,Fylde Office,Redfern Travel Ltd,SME,1198849,64.40,Travel & Subsistence,Administration
HM Land Registry,HM Land Registry,21/11/2017,Travel & Subsistence General Duty,Birkenhead Office,Redfern Travel Ltd,SME,1198192,68.60,Travel & Subsistence,Administration
HM Land Registry,HM Land Registry,21/11/2017,Travel & Subsistence General Duty,Telford Office,Redfern Travel Ltd,SME,1198192,68.60,Travel & Subsistence,Administration
HM Land Registry,HM Land Registry,21/11/2017,Travel & Subsistence Overseas Travel,Central Facilities Management Team,Redfern Travel Ltd,SME,1198192,71.90,Travel & Subsistence,Administration
HM Land Registry,HM Land Registry,21/11/2017,Travel & Subsistence General Duty,Nottingham Office,Redfern Travel Ltd,SME,1198192,75.60,Travel & Subsistence,Administration
HM Land Registry,HM Land Registry,21/11/2017,Travel & Subsistence Overseas Travel,Local Lawyer Group,Redfern Travel Ltd,SME,1198192,75.80,Travel & Subsistence,Administration
HM Land Registry,HM Land Registry,28/11/2017,Travel & Subsistence General Duty,Peterborough Office,Redfern Travel Ltd,SME,1198849,77.60,Travel & Subsistence,Administration
HM Land Registry,HM Land Registry,20/11/2017,Travel & Subsistence General Duty,Telford Office,Redfern Travel Ltd,SME,1197994,82.33,Travel & Subsistence,Administration
HM Land Registry,HM Land Registry,20/11/2017,Travel & Subsistence General Duty,HR Operations,Redfern Travel Ltd,SME,1197994,84.80,Travel & Subsistence,Administration
HM Land Registry,HM Land Registry,20/11/2017,Travel & Subsistence General Duty,International Business Development,Redfern Travel Ltd,SME,1197994,85.50,Travel & Subsistence,Administration
HM Land Registry,HM Land Registry,28/11/2017,Travel & Subsistence General Duty,Director of Operations,Redfern Travel Ltd,SME,1198849,91.50,Travel & Subsistence,Administration
HM Land Registry,HM Land Registry,21/11/2017,Travel & Subsistence General Duty,Internal Audit,Redfern Travel Ltd,SME,1198192,95.60,Travel & Subsistence,Administration
HM Land Registry,HM Land Registry,21/11/2017,Travel & Subsistence General Duty,Registration Legal Services Group,Redfern Travel Ltd,SME,1198192,106.70,Travel & Subsistence,Administration
HM Land Registry,HM Land Registry,08/11/2017,Travel & Subsistence General Duty,HR Operations,Redfern Travel Ltd,SME,1196911,110.80,Travel & Subsistence,Administration
HM Land Registry,HM Land Registry,08/11/2017,Travel & Subsistence General Duty,Property Asset Management Group,Redfern Travel Ltd,SME,1196911,110.90,Travel & Subsistence,Administration
HM Land Registry,HM Land Registry,08/11/2017,Travel & Subsistence General Duty,Birkenhead Office,Redfern Travel Ltd,SME,1196911,117.40,Travel & Subsistence,Administration
HM Land Registry,HM Land Registry,20/11/2017,Travel & Subsistence General Duty,Durham Office,Redfern Travel Ltd,SME,1197994,127.70,Travel & Subsistence,Administration
HM Land Registry,HM Land Registry,08/11/2017,Travel & Subsistence General Duty,Hull Office,Redfern Travel Ltd,SME,1196911,135.80,Travel & Subsistence,Administration
HM Land Registry,HM Land Registry,08/11/2017,Travel & Subsistence General Duty,Plymouth Office,Redfern Travel Ltd,SME,1196911,138.10,Travel & Subsistence,Administration
HM Land Registry,HM Land Registry,28/11/2017,Travel & Subsistence General Duty,Nottingham Office,Redfern Travel Ltd,SME,1198849,139.10,Travel & Subsistence,Administration
HM Land Registry,HM Land Registry,21/11/2017,Travel & Subsistence Overseas Travel,International Relations,Redfern Travel Ltd,SME,1198192,143.00,Travel & Subsistence,Administration
HM Land Registry,HM Land Registry,20/11/2017,Travel & Subsistence Dual Workplace,Corporate Legal Services,Redfern Travel Ltd,SME,1197994,144.65,Travel & Subsistence,Administration
HM Land Registry,HM Land Registry,20/11/2017,Travel & Subsistence General Duty,Commercial Director,Redfern Travel Ltd,SME,1197994,146.23,Travel & Subsistence,Administration
HM Land Registry,HM Land Registry,20/11/2017,Travel & Subsistence General Duty,Guarantee & Litigation,Redfern Travel Ltd,SME,1197994,154.60,Travel & Subsistence,Administration
HM Land Registry,HM Land Registry,21/11/2017,Travel & Subsistence Overseas Travel,Corporate Legal Services,Redfern Travel Ltd,SME,1198192,154.70,Travel & Subsistence,Administration
HM Land Registry,HM Land Registry,21/11/2017,Travel & Subsistence General Duty,Weymouth Office,Redfern Travel Ltd,SME,1198192,156.50,Travel & Subsistence,Administration
HM Land Registry,HM Land Registry,08/11/2017,Travel & Subsistence General Duty,Fylde Office,Redfern Travel Ltd,SME,1196911,163.64,Travel & Subsistence,Administration
HM Land Registry,HM Land Registry,08/11/2017,Travel & Subsistence General Duty,HR Strategy & Policy,Redfern Travel Ltd,SME,1196911,169.30,Travel & Subsistence,Administration
HM Land Registry,HM Land Registry,21/11/2017,Travel & Subsistence General Duty,Peterborough Office,Redfern Travel Ltd,SME,1198192,176.50,Travel & Subsistence,Administration
HM Land Registry,HM Land Registry,21/11/2017,Travel & Subsistence General Duty,Marketing Services Team,Redfern Travel Ltd,SME,1198192,176.80,Travel & Subsistence,Administration
HM Land Registry,HM Land Registry,21/11/2017,Travel & Subsistence General Duty,HR Operations,Redfern Travel Ltd,SME,1198192,177.00,Travel & Subsistence,Administration
HM Land Registry,HM Land Registry,28/11/2017,Travel & Subsistence General Duty,Property Asset Management Group,Redfern Travel Ltd,SME,1198849,186.60,Travel & Subsistence,Administration
HM Land Registry,HM Land Registry,28/11/2017,Assets in the Course of Construction,Balance Sheet,Redfern Travel Ltd,SME,1198849,189.50,Assets in the Course of Construction,Administration
HM Land Registry,HM Land Registry,08/11/2017,Travel & Subsistence General Duty,Commercial Director,Redfern Travel Ltd,SME,1196911,198.00,Travel & Subsistence,Administration
HM Land Registry,HM Land Registry,08/11/2017,Travel & Subsistence General Duty,Research & Data Mining,Redfern Travel Ltd,SME,1196911,201.50,Travel & Subsistence,Administration
HM Land Registry,HM Land Registry,20/11/2017,Travel & Subsistence General Duty,International Relations,Redfern Travel Ltd,SME,1197994,207.20,Travel & Subsistence,Administration
HM Land Registry,HM Land Registry,28/11/2017,Travel & Subsistence General Duty,Hull Office,Redfern Travel Ltd,SME,1198849,223.40,Travel & Subsistence,Administration
HM Land Registry,HM Land Registry,08/11/2017,Travel & Subsistence General Duty,Marketing Services Team,Redfern Travel Ltd,SME,1196911,223.60,Travel & Subsistence,Administration
HM Land Registry,HM Land Registry,20/11/2017,Travel & Subsistence General Duty,Hull Office,Redfern Travel Ltd,SME,1197994,233.70,Travel & Subsistence,Administration
HM Land Registry,HM Land Registry,28/11/2017,Travel & Subsistence General Duty,International Business Development,Redfern Travel Ltd,SME,1198849,235.50,Travel & Subsistence,Administration
HM Land Registry,HM Land Registry,28/11/2017,Travel & Subsistence General Duty,HR Operations,Redfern Travel Ltd,SME,1198849,238.50,Travel & Subsistence,Administration
HM Land Registry,HM Land Registry,28/11/2017,Travel & Subsistence General Duty,Plymouth Office,Redfern Travel Ltd,SME,1198849,242.20,Travel & Subsistence,Administration
HM Land Registry,HM Land Registry,21/11/2017,Assets in the Course of Construction,Balance Sheet,Redfern Travel Ltd,SME,1198192,243.70,Assets in the Course of Construction,Administration
HM Land Registry,HM Land Registry,28/11/2017,Travel & Subsistence General Duty,Wales Office,Redfern Travel Ltd,SME,1198849,245.10,Travel & Subsistence,Administration
HM Land Registry,HM Land Registry,21/11/2017,Travel & Subsistence General Duty,Commercial Director,Redfern Travel Ltd,SME,1198192,250.20,Travel & Subsistence,Administration
HM Land Registry,HM Land Registry,20/11/2017,Travel & Subsistence Overseas Travel,Research & Data Mining,Redfern Travel Ltd,SME,1197994,254.30,Travel & Subsistence,Administration
HM Land Registry,HM Land Registry,21/11/2017,Travel & Subsistence General Duty,Leicester Office,Redfern Travel Ltd,SME,1198192,258.20,Travel & Subsistence,Administration
HM Land Registry,HM Land Registry,08/11/2017,Travel & Subsistence General Duty,Customer Services,Redfern Travel Ltd,SME,1196911,259.80,Travel & Subsistence,Administration
HM Land Registry,HM Land Registry,20/11/2017,Travel & Subsistence General Duty,Research & Data Mining,Redfern Travel Ltd,SME,1197994,260.13,Travel & Subsistence,Administration
HM Land Registry,HM Land Registry,20/11/2017,Travel & Subsistence General Duty,Corporate Legal Services,Redfern Travel Ltd,SME,1197994,262.15,Travel & Subsistence,Administration
HM Land Registry,HM Land Registry,08/11/2017,Travel & Subsistence General Duty,Coventry Office,Redfern Travel Ltd,SME,1196911,266.70,Travel & Subsistence,Administration
HM Land Registry,HM Land Registry,20/11/2017,Travel & Subsistence General Duty,Nottingham Office,Redfern Travel Ltd,SME,1197994,270.20,Travel & Subsistence,Administration
HM Land Registry,HM Land Registry,20/11/2017,Travel & Subsistence General Duty,Croydon Office,Redfern Travel Ltd,SME,1197994,274.20,Travel & Subsistence,Administration
HM Land Registry,HM Land Registry,20/11/2017,Travel & Subsistence General Duty,Director of Operations,Redfern Travel Ltd,SME,1197994,278.53,Travel & Subsistence,Administration
HM Land Registry,HM Land Registry,21/11/2017,Travel & Subsistence General Duty,Hull Office,Redfern Travel Ltd,SME,1198192,284.70,Travel & Subsistence,Administration
HM Land Registry,HM Land Registry,20/11/2017,Assets in the Course of Construction,Balance Sheet,Redfern Travel Ltd,SME,1197994,309.85,Assets in the Course of Construction,Administration
HM Land Registry,HM Land Registry,21/11/2017,Travel & Subsistence General Duty,Business Development,Redfern Travel Ltd,SME,1198192,310.70,Travel & Subsistence,Administration
HM Land Registry,HM Land Registry,08/11/2017,Travel & Subsistence General Duty,Wales Office,Redfern Travel Ltd,SME,1196911,312.70,Travel & Subsistence,Administration
HM Land Registry,HM Land Registry,21/11/2017,Travel & Subsistence General Duty,International Business Development,Redfern Travel Ltd,SME,1198192,313.80,Travel & Subsistence,Administration
HM Land Registry,HM Land Registry,28/11/2017,Travel & Subsistence General Duty,Coventry Office,Redfern Travel Ltd,SME,1198849,318.70,Travel & Subsistence,Administration
HM Land Registry,HM Land Registry,28/11/2017,Travel & Subsistence General Duty,Corp Procurement,Redfern Travel Ltd,SME,1198849,321.69,Travel & Subsistence,Administration
HM Land Registry,HM Land Registry,20/11/2017,Travel & Subsistence General Duty,Dir: Operations,Redfern Travel Ltd,SME,1197994,323.15,Travel & Subsistence,Administration
HM Land Registry,HM Land Registry,08/11/2017,Travel & Subsistence General Duty,Corp Procurement,Redfern Travel Ltd,SME,1196911,324.26,Travel & Subsistence,Administration
HM Land Registry,HM Land Registry,08/11/2017,Travel & Subsistence General Duty,Product Development & Management,Redfern Travel Ltd,SME,1196911,332.80,Travel & Subsistence,Administration
HM Land Registry,HM Land Registry,21/11/2017,Travel & Subsistence General Duty,Gloucester Office,Redfern Travel Ltd,SME,1198192,338.20,Travel & Subsistence,Administration
HM Land Registry,HM Land Registry,08/11/2017,Travel & Subsistence General Duty,LR Sports Council,Redfern Travel Ltd,SME,1196911,342.10,Travel & Subsistence,Administration
HM Land Registry,HM Land Registry,08/11/2017,Travel & Subsistence General Duty,International Business Development,Redfern Travel Ltd,SME,1196911,363.70,Travel & Subsistence,Administration
HM Land Registry,HM Land Registry,08/11/2017,Travel & Subsistence General Duty,Business Development,Redfern Travel Ltd,SME,1196911,372.41,Travel & Subsistence,Administration
HM Land Registry,HM Land Registry,21/11/2017,Travel & Subsistence General Duty,Wales Office,Redfern Travel Ltd,SME,1198192,374.60,Travel & Subsistence,Administration
HM Land Registry,HM Land Registry,08/11/2017,Travel & Subsistence General Duty,Gloucester Office,Redfern Travel Ltd,SME,1196911,380.00,Travel & Subsistence,Administration
HM Land Registry,HM Land Registry,20/11/2017,Travel & Subsistence General Duty,Customer Services,Redfern Travel Ltd,SME,1197994,380.96,Travel & Subsistence,Administration
HM Land Registry,HM Land Registry,20/11/2017,Travel & Subsistence General Duty,Plymouth Office,Redfern Travel Ltd,SME,1197994,404.20,Travel & Subsistence,Administration
HM Land Registry,HM Land Registry,28/11/2017,Travel & Subsistence General Duty,Strategy Team,Redfern Travel Ltd,SME,1198849,410.50,Travel & Subsistence,Administration
HM Land Registry,HM Land Registry,20/11/2017,Travel & Subsistence General Duty,Peterborough Office,Redfern Travel Ltd,SME,1197994,420.83,Travel & Subsistence,Administration
HM Land Registry,HM Land Registry,08/11/2017,Travel & Subsistence General Duty,Croydon Office,Redfern Travel Ltd,SME,1196911,426.00,Travel & Subsistence,Administration
HM Land Registry,HM Land Registry,28/11/2017,Travel & Subsistence General Duty,Local Lawyer Group,Redfern Travel Ltd,SME,1198849,437.30,Travel & Subsistence,Administration
HM Land Registry,HM Land Registry,08/11/2017,Travel & Subsistence General Duty,Finance Group,Redfern Travel Ltd,SME,1196911,439.75,Travel & Subsistence,Administration
HM Land Registry,HM Land Registry,20/11/2017,Travel & Subsistence General Duty,Operations Assurance and Risk,Redfern Travel Ltd,SME,1197994,448.15,Travel & Subsistence,Administration
HM Land Registry,HM Land Registry,21/11/2017,Travel & Subsistence General Duty,Croydon Office,Redfern Travel Ltd,SME,1198192,449.42,Travel & Subsistence,Administration
HM Land Registry,HM Land Registry,08/11/2017,Travel & Subsistence General Duty,Telford Office,Redfern Travel Ltd,SME,1196911,453.10,Travel & Subsistence,Administration
HM Land Registry,HM Land Registry,21/11/2017,Travel & Subsistence General Duty,Local Lawyer Group,Redfern Travel Ltd,SME,1198192,453.57,Travel & Subsistence,Administration
HM Land Registry,HM Land Registry,20/11/2017,Travel & Subsistence General Duty,Coventry Office,Redfern Travel Ltd,SME,1197994,456.10,Travel & Subsistence,Administration
HM Land Registry,HM Land Registry,20/11/2017,Travel & Subsistence General Duty,Leicester Office,Redfern Travel Ltd,SME,1197994,461.00,Travel & Subsistence,Administration
HM Land Registry,HM Land Registry,20/11/2017,Travel & Subsistence General Duty,Internal Audit,Redfern Travel Ltd,SME,1197994,466.49,Travel & Subsistence,Administration
HM Land Registry,HM Land Registry,28/11/2017,Travel & Subsistence General Duty,Commercial Director,Redfern Travel Ltd,SME,1198849,481.90,Travel & Subsistence,Administration
HM Land Registry,HM Land Registry,28/11/2017,Travel & Subsistence General Duty,Operations Assurance and Risk,Redfern Travel Ltd,SME,1198849,489.85,Travel & Subsistence,Administration
HM Land Registry,HM Land Registry,08/11/2017,Travel & Subsistence General Duty,Internal Audit,Redfern Travel Ltd,SME,1196911,491.30,Travel & Subsistence,Administration
HM Land Registry,HM Land Registry,21/11/2017,Travel & Subsistence General Duty,Chief Executives Office,Redfern Travel Ltd,SME,1198192,500.70,Travel & Subsistence,Administration
HM Land Registry,HM Land Registry,08/11/2017,Travel & Subsistence General Duty,Operations Assurance and Risk,Redfern Travel Ltd,SME,1196911,501.05,Travel & Subsistence,Administration
HM Land Registry,HM Land Registry,21/11/2017,Travel & Subsistence General Duty,Finance Group,Redfern Travel Ltd,SME,1198192,503.40,Travel & Subsistence,Administration
HM Land Registry,HM Land Registry,20/11/2017,Travel & Subsistence General Duty,Local Lawyer Group,Redfern Travel Ltd,SME,1197994,517.45,Travel & Subsistence,Administration
HM Land Registry,HM Land Registry,28/11/2017,Travel & Subsistence General Duty,Internal Audit,Redfern Travel Ltd,SME,1198849,520.05,Travel & Subsistence,Administration
HM Land Registry,HM Land Registry,08/11/2017,Assets in the Course of Construction,Balance Sheet,Redfern Travel Ltd,SME,1196911,537.75,Assets in the Course of Construction,Administration
HM Land Registry,HM Land Registry,08/11/2017,Travel & Subsistence General Duty,Director of Operations,Redfern Travel Ltd,SME,1196911,539.10,Travel & Subsistence,Administration
HM Land Registry,HM Land Registry,21/11/2017,Travel & Subsistence General Duty,Durham Office,Redfern Travel Ltd,SME,1198192,549.71,Travel & Subsistence,Administration
HM Land Registry,HM Land Registry,21/11/2017,Travel & Subsistence General Duty,Fylde Office,Redfern Travel Ltd,SME,1198192,605.82,Travel & Subsistence,Administration
HM Land Registry,HM Land Registry,28/11/2017,Travel & Subsistence General Duty,Local Land Charges,Redfern Travel Ltd,SME,1198849,632.71,Travel & Subsistence,Administration
HM Land Registry,HM Land Registry,21/11/2017,Travel & Subsistence General Duty,Coventry Office,Redfern Travel Ltd,SME,1198192,633.40,Travel & Subsistence,Administration
HM Land Registry,HM Land Registry,20/11/2017,Travel & Subsistence General Duty,Chief Executives Office,Redfern Travel Ltd,SME,1197994,642.70,Travel & Subsistence,Administration
HM Land Registry,HM Land Registry,08/11/2017,Travel & Subsistence General Duty,Central Facilities Management Team,Redfern Travel Ltd,SME,1196911,643.50,Travel & Subsistence,Administration
HM Land Registry,HM Land Registry,28/11/2017,Travel & Subsistence General Duty,Chief Executives Office,Redfern Travel Ltd,SME,1198849,659.05,Travel & Subsistence,Administration
HM Land Registry,HM Land Registry,28/11/2017,Travel & Subsistence General Duty,Central Operations Group,Redfern Travel Ltd,SME,1198849,661.45,Travel & Subsistence,Administration
HM Land Registry,HM Land Registry,08/11/2017,Travel & Subsistence General Duty,Communications Team,Redfern Travel Ltd,SME,1196911,671.20,Travel & Subsistence,Administration
HM Land Registry,HM Land Registry,20/11/2017,Travel & Subsistence General Duty,Business Development,Redfern Travel Ltd,SME,1197994,694.48,Travel & Subsistence,Administration
HM Land Registry,HM Land Registry,20/11/2017,Travel & Subsistence General Duty,Communications Team,Redfern Travel Ltd,SME,1197994,704.75,Travel & Subsistence,Administration
HM Land Registry,HM Land Registry,21/11/2017,Travel & Subsistence General Duty,Communications Team,Redfern Travel Ltd,SME,1198192,713.95,Travel & Subsistence,Administration
HM Land Registry,HM Land Registry,20/11/2017,Travel & Subsistence General Duty,Corp Procurement,Redfern Travel Ltd,SME,1197994,725.43,Travel & Subsistence,Administration
HM Land Registry,HM Land Registry,20/11/2017,Travel & Subsistence General Duty,Marketing Services Team,Redfern Travel Ltd,SME,1197994,740.30,Travel & Subsistence,Administration
HM Land Registry,HM Land Registry,21/11/2017,Travel & Subsistence General Duty,Central Operations Group,Redfern Travel Ltd,SME,1198192,745.75,Travel & Subsistence,Administration
HM Land Registry,HM Land Registry,21/11/2017,Travel & Subsistence General Duty,Property Asset Management Group,Redfern Travel Ltd,SME,1198192,759.68,Travel & Subsistence,Administration
HM Land Registry,HM Land Registry,20/11/2017,Travel & Subsistence General Duty,Gloucester Office,Redfern Travel Ltd,SME,1197994,775.60,Travel & Subsistence,Administration
HM Land Registry,HM Land Registry,21/11/2017,Travel & Subsistence General Duty,Corp Procurement,Redfern Travel Ltd,SME,1198192,784.52,Travel & Subsistence,Administration
HM Land Registry,HM Land Registry,28/11/2017,Travel & Subsistence General Duty,Customer Services,Redfern Travel Ltd,SME,1198849,804.25,Travel & Subsistence,Administration
HM Land Registry,HM Land Registry,28/11/2017,Travel & Subsistence General Duty,Data Group,Redfern Travel Ltd,SME,1198849,810.70,Travel & Subsistence,Administration
HM Land Registry,HM Land Registry,20/11/2017,Travel & Subsistence General Duty,Dir: (Statutory) Digital Services,Redfern Travel Ltd,SME,1197994,818.90,Travel & Subsistence,Administration
HM Land Registry,HM Land Registry,08/11/2017,Travel & Subsistence General Duty,Chief Executives Office,Redfern Travel Ltd,SME,1196911,834.95,Travel & Subsistence,Administration
HM Land Registry,HM Land Registry,08/11/2017,Travel & Subsistence General Duty,Strategy Team,Redfern Travel Ltd,SME,1196911,836.30,Travel & Subsistence,Administration
HM Land Registry,HM Land Registry,20/11/2017,Travel & Subsistence General Duty,Projects and Programme Centre,Redfern Travel Ltd,SME,1197994,837.10,Travel & Subsistence,Administration
HM Land Registry,HM Land Registry,08/11/2017,Travel & Subsistence General Duty,Durham Office,Redfern Travel Ltd,SME,1196911,861.05,Travel & Subsistence,Administration
HM Land Registry,HM Land Registry,20/11/2017,Travel & Subsistence General Duty,Central Operations Group,Redfern Travel Ltd,SME,1197994,861.15,Travel & Subsistence,Administration
HM Land Registry,HM Land Registry,08/11/2017,Travel & Subsistence General Duty,Central Operations Group,Redfern Travel Ltd,SME,1196911,886.59,Travel & Subsistence,Administration
HM Land Registry,HM Land Registry,20/11/2017,Travel & Subsistence General Duty,Property Asset Management Group,Redfern Travel Ltd,SME,1197994,896.10,Travel & Subsistence,Administration
HM Land Registry,HM Land Registry,20/11/2017,Travel & Subsistence General Duty,Wales Office,Redfern Travel Ltd,SME,1197994,907.40,Travel & Subsistence,Administration
HM Land Registry,HM Land Registry,08/11/2017,Travel & Subsistence General Duty,Corporate Legal Services,Redfern Travel Ltd,SME,1196911,907.50,Travel & Subsistence,Administration
HM Land Registry,HM Land Registry,28/11/2017,Travel & Subsistence General Duty,Local Lawyer Support Group,Redfern Travel Ltd,SME,1198849,908.70,Travel & Subsistence,Administration
HM Land Registry,HM Land Registry,28/11/2017,Travel & Subsistence General Duty,Durham Office,Redfern Travel Ltd,SME,1198849,915.70,Travel & Subsistence,Administration
HM Land Registry,HM Land Registry,20/11/2017,Travel & Subsistence General Duty,Weymouth Office,Redfern Travel Ltd,SME,1197994,928.05,Travel & Subsistence,Administration
HM Land Registry,HM Land Registry,28/11/2017,Travel & Subsistence General Duty,Program: Local Land Charges,Redfern Travel Ltd,SME,1198849,944.88,Travel & Subsistence,Administration
HM Land Registry,HM Land Registry,28/11/2017,Travel & Subsistence General Duty,Croydon Office,Redfern Travel Ltd,SME,1198849,968.76,Travel & Subsistence,Administration
HM Land Registry,HM Land Registry,21/11/2017,Travel & Subsistence General Duty,Projects and Programme Centre,Redfern Travel Ltd,SME,1198192,980.39,Travel & Subsistence,Administration
HM Land Registry,HM Land Registry,20/11/2017,Travel & Subsistence General Duty,Birkenhead Office,Redfern Travel Ltd,SME,1197994,"1,004.94",Travel & Subsistence,Administration
HM Land Registry,HM Land Registry,20/11/2017,Travel & Subsistence General Duty,Finance Group,Redfern Travel Ltd,SME,1197994,"1,005.00",Travel & Subsistence,Administration
HM Land Registry,HM Land Registry,28/11/2017,Travel & Subsistence General Duty,Projects and Programme Centre,Redfern Travel Ltd,SME,1198849,"1,012.60",Travel & Subsistence,Administration
HM Land Registry,HM Land Registry,20/11/2017,Travel & Subsistence General Duty,Strategy Team,Redfern Travel Ltd,SME,1197994,"1,059.70",Travel & Subsistence,Administration
HM Land Registry,HM Land Registry,20/11/2017,Travel & Subsistence General Duty,Fylde Office,Redfern Travel Ltd,SME,1197994,"1,095.30",Travel & Subsistence,Administration
HM Land Registry,HM Land Registry,20/11/2017,Travel & Subsistence General Duty,Data Group,Redfern Travel Ltd,SME,1197994,"1,162.10",Travel & Subsistence,Administration
HM Land Registry,HM Land Registry,28/11/2017,Travel & Subsistence General Duty,Dir: Finance,Redfern Travel Ltd,SME,1198849,"1,193.30",Travel & Subsistence,Administration
HM Land Registry,HM Land Registry,20/11/2017,Travel & Subsistence General Duty,Product Development & Management,Redfern Travel Ltd,SME,1197994,"1,225.50",Travel & Subsistence,Administration
HM Land Registry,HM Land Registry,21/11/2017,Travel & Subsistence General Duty,Product Development & Management,Redfern Travel Ltd,SME,1198192,"1,245.24",Travel & Subsistence,Administration
HM Land Registry,HM Land Registry,28/11/2017,Travel & Subsistence General Duty,Business Development,Redfern Travel Ltd,SME,1198849,"1,258.74",Travel & Subsistence,Administration
HM Land Registry,HM Land Registry,21/11/2017,Travel & Subsistence General Duty,Central Facilities Management Team,Redfern Travel Ltd,SME,1198192,"1,278.80",Travel & Subsistence,Administration
HM Land Registry,HM Land Registry,21/11/2017,Travel & Subsistence General Duty,Customer Services,Redfern Travel Ltd,SME,1198192,"1,280.30",Travel & Subsistence,Administration
HM Land Registry,HM Land Registry,20/11/2017,Travel & Subsistence General Duty,Local Lawyer Support Group,Redfern Travel Ltd,SME,1197994,"1,285.80",Travel & Subsistence,Administration
HM Land Registry,HM Land Registry,08/11/2017,Travel & Subsistence General Duty,Dir: Operations,Redfern Travel Ltd,SME,1196911,"1,301.68",Travel & Subsistence,Administration
HM Land Registry,HM Land Registry,08/11/2017,Travel & Subsistence General Duty,Projects and Programme Centre,Redfern Travel Ltd,SME,1196911,"1,496.75",Travel & Subsistence,Administration
HM Land Registry,HM Land Registry,28/11/2017,Travel & Subsistence General Duty,Communications Team,Redfern Travel Ltd,SME,1198849,"1,532.60",Travel & Subsistence,Administration
HM Land Registry,HM Land Registry,20/11/2017,Travel & Subsistence General Duty,Local Land Charges,Redfern Travel Ltd,SME,1197994,"1,533.85",Travel & Subsistence,Administration
HM Land Registry,HM Land Registry,28/11/2017,Travel & Subsistence General Duty,Product Development & Management,Redfern Travel Ltd,SME,1198849,"1,571.80",Travel & Subsistence,Administration
HM Land Registry,HM Land Registry,28/11/2017,Travel & Subsistence General Duty,Central Facilities Management Team,Redfern Travel Ltd,SME,1198849,"1,747.65",Travel & Subsistence,Administration
HM Land Registry,HM Land Registry,28/11/2017,Travel & Subsistence General Duty,Corporate Legal Services,Redfern Travel Ltd,SME,1198849,"1,782.22",Travel & Subsistence,Administration
HM Land Registry,HM Land Registry,21/11/2017,Travel & Subsistence General Duty,Local Land Charges,Redfern Travel Ltd,SME,1198192,"1,804.27",Travel & Subsistence,Administration
HM Land Registry,HM Land Registry,08/11/2017,Travel & Subsistence General Duty,Local Land Charges,Redfern Travel Ltd,SME,1196911,"1,884.35",Travel & Subsistence,Administration
HM Land Registry,HM Land Registry,21/11/2017,Travel & Subsistence General Duty,Dir: Operations,Redfern Travel Ltd,SME,1198192,"1,893.52",Travel & Subsistence,Administration
HM Land Registry,HM Land Registry,21/11/2017,Travel & Subsistence General Duty,Plymouth Office,Redfern Travel Ltd,SME,1198192,"1,911.10",Travel & Subsistence,Administration
HM Land Registry,HM Land Registry,21/11/2017,Travel & Subsistence General Duty,Dir: Finance,Redfern Travel Ltd,SME,1198192,"1,943.49",Travel & Subsistence,Administration
HM Land Registry,HM Land Registry,21/11/2017,Travel & Subsistence General Duty,Data Group,Redfern Travel Ltd,SME,1198192,"2,156.18",Travel & Subsistence,Administration
HM Land Registry,HM Land Registry,21/11/2017,Travel & Subsistence General Duty,Program: Local Land Charges,Redfern Travel Ltd,SME,1198192,"2,192.76",Travel & Subsistence,Administration
HM Land Registry,HM Land Registry,20/11/2017,Travel & Subsistence General Duty,Central Facilities Management Team,Redfern Travel Ltd,SME,1197994,"2,369.90",Travel & Subsistence,Administration
HM Land Registry,HM Land Registry,08/11/2017,Travel & Subsistence General Duty,Director of Information Systems,Redfern Travel Ltd,SME,1196911,"2,442.32",Travel & Subsistence,Administration
HM Land Registry,HM Land Registry,28/11/2017,Travel & Subsistence General Duty,HR Group,Redfern Travel Ltd,SME,1198849,"2,465.93",Travel & Subsistence,Administration
HM Land Registry,HM Land Registry,08/11/2017,Travel & Subsistence General Duty,Data Group,Redfern Travel Ltd,SME,1196911,"2,476.00",Travel & Subsistence,Administration
HM Land Registry,HM Land Registry,21/11/2017,Travel & Subsistence General Duty,Dir: (Statutory) Digital Services,Redfern Travel Ltd,SME,1198192,"2,485.40",Travel & Subsistence,Administration
HM Land Registry,HM Land Registry,20/11/2017,Travel & Subsistence General Duty,Dir: Finance,Redfern Travel Ltd,SME,1197994,"2,533.02",Travel & Subsistence,Administration
HM Land Registry,HM Land Registry,08/11/2017,Travel & Subsistence General Duty,Program: Local Land Charges,Redfern Travel Ltd,SME,1196911,"2,587.45",Travel & Subsistence,Administration
HM Land Registry,HM Land Registry,20/11/2017,Travel & Subsistence General Duty,LR Sports Council,Redfern Travel Ltd,SME,1197994,"2,639.73",Travel & Subsistence,Administration
HM Land Registry,HM Land Registry,21/11/2017,Travel & Subsistence General Duty,Corporate Legal Services,Redfern Travel Ltd,SME,1198192,"2,707.49",Travel & Subsistence,Administration
HM Land Registry,HM Land Registry,20/11/2017,Travel & Subsistence General Duty,Program: Local Land Charges,Redfern Travel Ltd,SME,1197994,"2,771.04",Travel & Subsistence,Administration
HM Land Registry,HM Land Registry,08/11/2017,Travel & Subsistence General Duty,Dir: Finance,Redfern Travel Ltd,SME,1196911,"3,213.90",Travel & Subsistence,Administration
HM Land Registry,HM Land Registry,08/11/2017,Travel & Subsistence General Duty,HR Group,Redfern Travel Ltd,SME,1196911,"3,269.52",Travel & Subsistence,Administration
HM Land Registry,HM Land Registry,28/11/2017,Travel & Subsistence General Duty,Director of Information Systems,Redfern Travel Ltd,SME,1198849,"3,315.35",Travel & Subsistence,Administration
HM Land Registry,HM Land Registry,21/11/2017,Travel & Subsistence General Duty,HR Group,Redfern Travel Ltd,SME,1198192,"3,488.53",Travel & Subsistence,Administration
HM Land Registry,HM Land Registry,28/11/2017,Travel & Subsistence General Duty,Dir: (Statutory) Digital Services,Redfern Travel Ltd,SME,1198849,"3,550.63",Travel & Subsistence,Administration
HM Land Registry,HM Land Registry,20/11/2017,Travel & Subsistence General Duty,HR Group,Redfern Travel Ltd,SME,1197994,"3,668.46",Travel & Subsistence,Administration
HM Land Registry,HM Land Registry,20/11/2017,Travel & Subsistence General Duty,Director of Information Systems,Redfern Travel Ltd,SME,1197994,"3,861.92",Travel & Subsistence,Administration
HM Land Registry,HM Land Registry,21/11/2017,Travel & Subsistence General Duty,Director of Information Systems,Redfern Travel Ltd,SME,1198192,"3,920.01",Travel & Subsistence,Administration
HM Land Registry,HM Land Registry,28/11/2017,Travel & Subsistence General Duty,Dir: Operations,Redfern Travel Ltd,SME,1198849,"4,054.20",Travel & Subsistence,Administration
HM Land Registry,HM Land Registry,08/11/2017,Travel & Subsistence General Duty,Local Lawyer Group,Redfern Travel Ltd,SME,1196911,"4,325.76",Travel & Subsistence,Administration
HM Land Registry,HM Land Registry,08/11/2017,Travel & Subsistence General Duty,Dir: (Statutory) Digital Services,Redfern Travel Ltd,SME,1196911,"4,373.22",Travel & Subsistence,Administration
HM Land Registry,HM Land Registry,15/11/2017,Letter Post,Land Charges,Royal Mail,Large,1197606,799.55,Letter Post,Administration
HM Land Registry,HM Land Registry,15/11/2017,Letter Post,Telford Office,Royal Mail,Large,1197606,993.91,Letter Post,Administration
HM Land Registry,HM Land Registry,15/11/2017,Letter Post,Coventry Office,Royal Mail,Large,1197606,"1,463.43",Letter Post,Administration
HM Land Registry,HM Land Registry,15/11/2017,Letter Post,Weymouth Office,Royal Mail,Large,1197606,"1,465.69",Letter Post,Administration
HM Land Registry,HM Land Registry,15/11/2017,Letter Post,Leicester Office,Royal Mail,Large,1197606,"1,656.96",Letter Post,Administration
HM Land Registry,HM Land Registry,15/11/2017,Letter Post,Birkenhead Office,Royal Mail,Large,1197606,"1,805.42",Letter Post,Administration
HM Land Registry,HM Land Registry,15/11/2017,Letter Post,Gloucester Office,Royal Mail,Large,1197606,"1,994.65",Letter Post,Administration
HM Land Registry,HM Land Registry,15/11/2017,Letter Post,Peterborough Office,Royal Mail,Large,1197606,"2,030.77",Letter Post,Administration
HM Land Registry,HM Land Registry,15/11/2017,Letter Post,Fylde Office,Royal Mail,Large,1197606,"2,270.64",Letter Post,Administration
HM Land Registry,HM Land Registry,15/11/2017,Letter Post,Plymouth Office,Royal Mail,Large,1197606,"2,398.63",Letter Post,Administration
HM Land Registry,HM Land Registry,15/11/2017,Letter Post,Nottingham Office,Royal Mail,Large,1197606,"2,505.64",Letter Post,Administration
HM Land Registry,HM Land Registry,15/11/2017,Letter Post,Hull Office,Royal Mail,Large,1197606,"3,336.54",Letter Post,Administration
HM Land Registry,HM Land Registry,15/11/2017,Letter Post,Croydon Office,Royal Mail,Large,1197606,"5,151.59",Letter Post,Administration
HM Land Registry,HM Land Registry,15/11/2017,Letter Post,Durham Office,Royal Mail,Large,1197606,"6,083.98",Letter Post,Administration
HM Land Registry,HM Land Registry,15/11/2017,Letter Post,Wales Office,Royal Mail,Large,1197606,"14,470.45",Letter Post,Administration
HM Land Registry,HM Land Registry,15/11/2017,Letter Post,IS Service Delivery,Royal Mail,Large,1197606,"19,580.45",Letter Post,Administration
HM Land Registry,HM Land Registry,27/11/2017,Rates Payable,Director of Information Systems,South Hams District Council,Large,1175824,"4,503.00",Rates Payable,Administration
HM Land Registry,HM Land Registry,27/11/2017,Rates Payable,Director of Information Systems,South Hams District Council,Large,1175825,"7,837.00",Rates Payable,Administration
HM Land Registry,HM Land Registry,06/11/2017,Software as a Service (Cloud),Dir: Finance,Specialist Computer Centres Plc - SCC,Large,1196028,"260,910.10",Cloud Computing Services,Administration
HM Land Registry,HM Land Registry,27/11/2017,Rates Payable,Telford Office,Telford & Wrekin Council,Large,1176072,"26,106.00",Rates Payable,Administration
HM Land Registry,HM Land Registry,27/11/2017,Rates Payable,Gloucester Computer Centre,Tewkesbury Borough Council,Large,1174831,"11,615.00",Rates Payable,Administration
HM Land Registry,HM Land Registry,30/11/2017,RFS Outsourced Services,Central RFS,TNT (UK) Ltd,Large,1198847,"96,804.92",Regional File Store Outsourced Services,Administration
HM Land Registry,HM Land Registry,30/11/2017,RFS Outsourced Services,Central RFS,TNT (UK) Ltd,Large,1198846,"192,450.83",Regional File Store Outsourced Services,Administration
HM Land Registry,HM Land Registry,06/11/2017,Rates Payable,Weymouth Office,West Dorset District Council,Large,1176979,"4,093.00",Rates Payable,Administration
HM Land Registry,HM Land Registry,06/11/2017,Rates Payable,Weymouth Office,West Dorset District Council,Large,1176980,"5,221.00",Rates Payable,Administration
HM Land Registry,HM Land Registry,01/11/2017,Rates Payable,Birkenhead Office,Wirral Council,Large,1176876,"27,484.00",Rates Payable,Administration
HM Land Registry,HM Land Registry,07/11/2017,Maps & Plans Data Migration,Forward Scanning,Xerox (UK) Ltd,Large,1196679,"114,361.46",Maps & Plans Data Migration,Administration
HM Land Registry,HM Land Registry,17/11/2017,Computer Equipment Maintenance,Dir: Information Systems,XMA Limited,Large,1197220,"8,229.51",Computer Equipment Maintenance,Administration
HM Land Registry,HM Land Registry,17/11/2017,Computer Equipment Non HP Licences,Dir: Information Systems,XMA Limited,Large,1197219,"14,172.59",Computer Equipment Non HP Licences,Administration
HM Land Registry,HM Land Registry,17/11/2017,Computer Equipment Maintenance,IS Service Delivery,XMA Limited,Large,1197220,"21,396.72",Computer Equipment Maintenance,Administration
HM Land Registry,HM Land Registry,17/11/2017,Computer Equipment Maintenance,Dir: Information Systems,XMA Limited,Large,1197221,"22,552.84",Computer Equipment Maintenance,Administration
HM Land Registry,HM Land Registry,17/11/2017,Assets in the Course of Construction,Balance Sheet,XMA Limited,Large,1193906,"35,467.97",Assets in the Course of Construction,Administration
HM Land Registry,HM Land Registry,17/11/2017,Computer Equipment Non HP Licences,IS Service Delivery,XMA Limited,Large,1197219,"36,848.73",Computer Equipment Non HP Licences,Administration
HM Land Registry,HM Land Registry,17/11/2017,Computer Equipment Maintenance,IS Service Delivery,XMA Limited,Large,1197221,"58,637.42",Computer Equipment Maintenance,Administration
HM Land Registry,HM Land Registry,17/11/2017,Assets in the Course of Construction,Balance Sheet,XMA Limited,Large,1197223,"507,889.66",Assets in the Course of Construction,Administration
